bitfinex-derivatives/quotes_SOLF0:USTF0_20250212
["timestamp","ask_amount","ask_price","bid_price","bid_amount"]
[1739320324735,0.03804495,197.42,197.39,0.03381292]
[1739320325837,5.10364495,197.42,197.39,0.03381292]
[1739320326339,0.03804495,197.42,197.39,0.03381292]
[1739320326537,0.03804495,197.42,197.4,13.85343086]
[1739320327036,0.03804495,197.42,197.41,5.0658]
[1739320327240,1.5525,197.54,197.4,13.85343086]
[1739320327538,5.0635,197.51,197.46,5.0644]
[1739320328238,5.0635,197.5,197.46,5.0644]
[1739320328438,0.03636389,197.5,197.47,5.09632826]
[1739320328929,0.03636389,197.5,197.47,13.88545912]
[1739320329131,0.03636389,197.5,197.48,5.0638]
[1739320329327,0.03636389,197.5,197.47,13.88545912]
[1739320329530,2.9968,197.6,197.47,13.88545912]
[1739320329732,2.9968,197.6,197.5,13.85343086]
[1739320330640,13.85343086,197.59,197.47,13.85343086]
[1739320330938,5.0625,197.54,197.53,0.0381623]
[1739320331139,1.5961,197.58,197.44,13.85343086]
[1739320331340,0.03564796,197.55,197.52,0.03804703]
[1739320331537,5.0627,197.53,197.52,0.03804703]
[1739320332642,5.09814796,197.55,197.52,0.03804703]
[1739320333639,0.03564796,197.55,197.52,0.03804703]
[1739320334434,5.09784796,197.55,197.52,0.03804703]
[1739320334742,0.03564796,197.55,197.52,0.03804703]
[1739320335241,0.03564796,197.55,197.53,5.0625]
[1739320335440,0.03564796,197.55,197.52,0.03804703]
[1739320335644,0.03564796,197.55,197.52,5.10104703]
[1739320337047,0.03564796,197.55,197.53,5.0626]
[1739320337342,0.03564796,197.55,197.52,0.03804703]
[1739320337742,0.03564796,197.55,197.53,5.0627]
[1739320338342,0.03564796,197.55,197.53,13.85343086]
[1739320338645,0.03564796,197.55,197.54,5.0625]
[1739320339542,0.03564796,197.55,197.53,18.91613086]
[1739320340247,0.03564796,197.55,197.54,5.0625]
[1739320341042,1.5746,197.67,197.53,16.95473086]
[1739320341340,13.85343086,197.71,197.59,13.85343086]
[1739320341542,5.0598,197.65,197.6,5.0609]
[1739320342137,0.03219333,197.64,197.61,0.03523227]
[1739320342343,0.03219333,197.64,197.62,5.0603]
[1739320342744,0.03219333,197.64,197.61,0.03523227]
[1739320345641,5.0604,197.62,197.61,0.03523227]
[1739320347649,0.03219333,197.64,197.61,0.03523227]
[1739320347947,0.03219333,197.64,197.61,5.09583227]
[1739320348148,0.03219333,197.64,197.61,0.03523227]
[1739320348354,0.03219333,197.64,197.63,5.0602]
[1739320348951,5.0584,197.7,197.66,5.0594]
[1739320349149,1.5286,197.72,197.66,5.0594]
[1739320349452,3.0878,197.74,197.66,5.0594]
[1739320349648,3.0878,197.74,197.65,13.85343086]
[1739320349853,5.0579,197.72,197.68,5.0589]
[1739320350052,13.85343086,197.77,197.68,5.0589]
[1739320350253,0.03783522,197.72,197.69,5.0585]
[1739320350451,0.03783522,197.72,197.68,0.03589866]
[1739320350752,0.03783522,197.72,197.68,13.88932952]
[1739320351751,5.09573522,197.72,197.68,13.88932952]
[1739320352153,0.03783522,197.72,197.68,13.88932952]
[1739320352552,0.03783522,197.72,197.68,0.03589866]
[1739320353852,0.03783522,197.72,197.71,13.85343086]
[1739320354552,0.03783522,197.72,197.68,13.88932952]
[1739320355057,0.03783522,197.72,197.68,18.94802952]
[1739320355251,0.03783522,197.72,197.68,13.88932952]
[1739320355556,0.03783522,197.72,197.68,0.03589866]
[1739320355958,5.09573522,197.72,197.68,0.03589866]
[1739320356457,0.03783522,197.72,197.68,0.03589866]
[1739320356756,0.03783522,197.72,197.68,13.88932952]
[1739320356956,0.03783522,197.72,197.71,18.91153086]
[1739320358061,5.0553,197.82,197.71,13.85343086]
[1739320358253,5.0553,197.82,197.74,13.85343086]
[1739320358452,13.85343086,197.87,197.74,13.85343086]
[1739320358953,1.4616,197.88,197.7,13.85343086]
[1739320359158,1.01061141,197.9,197.83,13.85343086]
[1739320359656,1.01061141,197.9,197.85,5.0545]
[1739320359956,1.01061141,197.9,197.86,13.85343086]
[1739320360356,1.5397,197.96,197.86,13.85343086]
[1739320360960,1.5397,197.96,197.89,0.03207286]
[1739320361156,6.5915,197.96,197.89,0.03207286]
[1739320361356,1.5397,197.96,197.89,0.03207286]
[1739320362265,5.0528,197.93,197.89,0.03207286]
[1739320362560,1.5397,197.96,197.89,0.03207286]
[1739320362961,5.0523,197.94,197.89,0.03207286]
[1739320363262,1.5397,197.96,197.89,0.03207286]
[1739320363663,1.5397,197.96,197.89,13.88550372]
[1739320364057,15.34703086,198.0,197.89,13.88550372]
[1739320364660,5.052,197.95,197.89,13.88550372]
[1739320364859,15.34703086,198.0,197.89,13.88550372]
[1739320365557,5.0522,197.95,197.89,13.88550372]
[1739320365762,15.34703086,198.0,197.89,13.88550372]
[1739320366457,5.0523,197.94,197.89,13.88550372]
[1739320367757,5.0525,197.93,197.89,13.88550372]
[1739320368559,5.0522,197.95,197.89,13.88550372]
[1739320368765,15.34703086,198.0,197.89,13.88550372]
[1739320369167,5.0519,197.96,197.89,13.88550372]
[1739320369361,15.34703086,198.0,197.89,13.88550372]
[1739320369755,5.0526,197.93,197.89,13.88550372]
[1739320370255,5.0528,197.92,197.89,13.88550372]
[1739320370866,1.4936,198.0,197.89,13.88550372]
[1739320371165,1.4936,198.0,197.92,13.85343086]
[1739320371466,5.0517,197.96,197.95,13.85343086]
[1739320371662,1.5592,198.02,197.95,13.85343086]
[1739320372060,5.0515,197.98,197.95,13.85343086]
[1739320372358,1.5592,198.02,197.95,13.85343086]
[1739320372766,5.0515,197.98,197.95,13.85343086]
[1739320373271,5.052,197.95,197.94,0.03419843]
[1739320375367,1.5592,198.02,197.94,0.03419843]
[1739320375866,5.0508,198.0,197.94,0.03419843]
[1739320376065,1.5592,198.02,197.94,0.03419843]
[1739320376764,5.052,197.96,197.94,0.03419843]
[1739320376965,1.5592,198.02,197.94,0.03419843]
[1739320377571,5.052,197.95,197.94,0.03419843]
[1739320377970,1.5592,198.02,197.94,0.03419843]
[1739320378268,5.0518,197.96,197.94,0.03419843]
[1739320378464,1.5592,198.02,197.94,0.03419843]
[1739320380268,5.0512,197.99,197.94,0.03419843]
[1739320380467,5.0512,197.99,197.95,13.85343086]
[1739320380769,1.5592,198.02,197.95,13.85343086]
[1739320380970,1.5592,198.02,197.94,0.03419843]
[1739320381473,5.0518,197.96,197.94,0.03419843]
[1739320381775,1.5592,198.02,197.94,0.03419843]
[1739320382065,5.0515,197.97,197.94,0.03419843]
[1739320383576,5.0518,197.96,197.94,0.03419843]
[1739320383766,1.5592,198.02,197.94,0.03419843]
[1739320384071,13.85343086,198.0,197.94,0.03419843]
[1739320384272,5.052,197.95,197.94,0.03419843]
[1739320386274,3.0188,197.99,197.87,5.0539]
[1739320387074,5.0519,197.96,197.87,5.0539]
[1739320387378,0.03776243,197.95,197.91,0.03828009]
[1739320387679,5.0528,197.92,197.91,0.03828009]
[1739320388273,0.03776243,197.95,197.91,0.03828009]
[1739320388274,5.0525,197.94,197.91,0.03828009]
[1739320388772,0.03776243,197.95,197.91,0.03828009]
[1739320390580,13.85343086,197.94,197.8,211.49213086]
[1739320390977,13.85343086,197.94,197.83,13.85343086]
[1739320391281,13.85343086,197.94,197.8,197.6387]
[1739320391282,13.85343086,197.97,197.86,13.85343086]
[1739320391475,5.053,197.92,197.87,5.0538]
[1739320391670,0.03463945,197.93,197.9,0.03237769]
[1739320392082,5.053,197.91,197.9,0.03237769]
[1739320394877,0.03463945,197.93,197.83,13.85343086]
[1739320395080,13.85343086,197.94,197.8,18.49213086]
[1739320395380,13.85343086,197.94,197.83,13.85343086]
[1739320395982,0.03593608,197.9,197.87,0.03639163]
[1739320396580,5.0538,197.88,197.87,0.03639163]
[1739320399488,5.0555,197.82,197.77,13.85343086]
[1739320400478,5.0555,197.82,197.78,0.03517629]
[1739320400682,0.03318407,197.81,197.8,5.0558]
[1739320400883,5.0548,197.85,197.8,5.0558]
[1739320401183,0.03217027,197.82,197.8,5.0558]
[1739320401790,0.03217027,197.82,197.81,5.0556]
[1739320403688,3.135,197.96,197.8,13.85343086]
[1739320403989,3.135,197.96,197.85,13.85343086]
[1739320404189,5.053,197.91,197.87,5.054]
[1739320404891,0.03739631,197.91,197.87,0.0362613]
[1739320405490,5.0533,197.9,197.87,0.0362613]
[1739320405787,0.03739631,197.91,197.87,0.0362613]
[1739320406183,0.03739631,197.91,197.88,5.0536]
[1739320406388,0.03739631,197.91,197.88,13.85343086]
[1739320406683,5.0513,197.98,197.93,5.0525]
[1739320406888,142.79271639,198.03,197.93,13.85343086]
[1739320407289,3.33235,198.03,197.93,13.85343086]
[1739320407590,3.33235,198.03,197.9,13.85343086]
[1739320407591,0.21385,198.03,197.96,13.85343086]
[1739320407990,0.03192019,198.0,197.96,13.89062406]
[1739320409794,0.03192019,198.0,197.96,18.94232406]
[1739320410197,0.03192019,198.0,197.96,13.89062406]
[1739320410492,0.03192019,198.0,197.99,13.85343086]
[1739320413095,0.03192019,198.0,197.99,18.90443086]
[1739320414293,5.0493,198.06,198.0,5.0505]
[1739320414700,0.23123,198.1,198.0,5.0505]
[1739320415298,5.0497,198.05,198.0,5.0505]
[1739320415498,5.0497,198.05,198.03,0.03817451]
[1739320416598,5.0492,198.06,198.03,0.03817451]
[1739320416896,0.0387887,198.07,198.03,0.03817451]
[1739320417597,0.0387887,198.07,198.04,5.0495]
[1739320417793,0.0387887,198.07,198.03,0.03817451]
[1739320419596,5.0494,198.06,198.03,0.03817451]
[1739320420201,0.0387887,198.07,198.03,0.03817451]
[1739320420705,5.0877887,198.07,198.03,5.08807451]
[1739320420900,0.0387887,198.07,198.03,0.03817451]
[1739320422301,5.0496,198.05,198.03,0.03817451]
[1739320423306,0.0387887,198.07,198.03,0.03817451]
[1739320424907,0.0387887,198.07,198.04,5.0497]
[1739320425209,0.0387887,198.07,198.03,0.03817451]
[1739320426809,0.0387887,198.07,198.04,5.0497]
[1739320428410,0.0387887,198.07,198.03,0.03817451]
[1739320429710,5.0494,198.06,198.03,0.03817451]
[1739320430003,0.0387887,198.07,198.03,0.03817451]
[1739320430204,5.0497,198.04,198.03,0.03817451]
[1739320432014,0.0387887,198.07,198.03,0.03817451]
[1739320432816,0.0387887,198.07,198.03,5.08817451]
[1739320433012,0.0387887,198.07,198.03,0.03817451]
[1739320433516,0.0387887,198.07,198.04,5.0495]
[1739320434714,0.0387887,198.07,198.03,0.03817451]
[1739320434915,0.0387887,198.07,198.05,5.0494]
[1739320435312,0.0387887,198.07,198.03,0.03817451]
[1739320435613,0.0387887,198.07,198.03,5.08807451]
[1739320435810,5.0877887,198.07,198.03,0.03817451]
[1739320436017,0.0387887,198.07,198.03,0.03817451]
[1739320436218,0.0387887,198.07,198.03,5.08807451]
[1739320436517,0.0387887,198.07,198.03,0.03817451]
[1739320437519,0.0387887,198.07,198.04,5.0497]
[1739320438712,0.0387887,198.07,198.03,0.03817451]
[1739320438916,0.0387887,198.07,198.06,5.0492]
[1739320439214,0.0387887,198.07,198.03,0.03817451]
[1739320439619,5.0877887,198.07,198.04,8.81094754]
[1739320440517,0.0387887,198.07,198.04,8.81094754]
[1739320442019,5.0497,198.04,198.03,0.03817451]
[1739320443017,8.81094754,198.05,197.98,8.81094754]
[1739320443219,8.81094754,198.03,197.96,8.81094754]
[1739320443413,1.5728,198.06,197.94,8.81094754]
[1739320443414,8.81094754,198.01,197.94,8.81094754]
[1739320443620,5.0522,197.95,197.92,8.81094754]
[1739320443817,8.81094754,197.99,197.92,8.81094754]
[1739320444320,5.052,197.95,197.94,0.03425253]
[1739320445421,0.03878947,197.97,197.94,0.03425253]
[1739320449716,0.03878947,197.97,197.95,13.78039654]
[1739320450817,0.03878947,197.97,197.96,5.0517]
[1739320452328,0.03878947,197.97,197.94,0.03425253]
[1739320452824,0.03878947,197.97,197.95,5.0518]
[1739320453729,0.03878947,197.97,197.94,0.03425253]
[1739320455225,0.03878947,197.97,197.96,18.83209654]
[1739320463936,0.03878947,197.97,197.96,13.78039654]
[1739320464138,0.03878947,197.97,197.95,5.0519]
[1739320464339,0.03878947,197.97,197.94,0.03425253]
[1739320464639,0.03878947,197.97,197.94,5.08645253]
[1739320465036,5.052,197.95,197.94,0.03425253]
[1739320468142,0.03878947,197.97,197.94,0.03425253]
[1739320468645,5.052,197.96,197.94,0.03425253]
[1739320469145,0.03878947,197.97,197.94,0.03425253]
[1739320469344,5.052,197.95,197.94,0.03425253]
[1739320470038,0.03878947,197.97,197.86,13.78039654]
[1739320470346,13.78039654,197.95,197.8,206.78039654]
[1739320470639,13.78039654,197.92,197.8,13.78039654]
[1739320470837,13.78039654,197.92,197.81,5.0555]
[1739320471236,13.78039654,197.92,197.85,0.03650633]
[1739320471237,0.03708854,197.88,197.85,0.03650633]
[1739320471739,5.09088854,197.88,197.85,0.03650633]
[1739320472842,5.0543,197.86,197.85,0.03650633]
[1739320474451,5.09108854,197.88,197.85,0.03650633]
[1739320475447,5.0541,197.87,197.85,0.03650633]
[1739320475646,0.03708854,197.88,197.85,0.03650633]
[1739320476547,5.0543,197.86,197.85,0.03650633]
[1739320478149,5.0543,197.86,197.85,6.33e-06]
[1739320478846,18.83469654,197.86,197.85,6.33e-06]
[1739320482754,5.0543,197.86,197.85,6.33e-06]
[1739320484553,18.83469654,197.86,197.85,6.33e-06]
[1739320487155,5.0571,197.76,197.71,21.99439654]
[1739320487360,13.78039654,197.83,197.71,3.1559]
[1739320487665,5.0575,197.74,197.7,5.0584]
[1739320487958,5.0575,197.74,197.68,15.31309654]
[1739320488155,5.0579,197.73,197.68,15.31309654]
[1739320488358,5.09669958,197.73,197.69,0.03566455]
[1739320488557,0.03879958,197.73,197.69,0.03566455]
[1739320488765,0.03879958,197.73,197.69,5.09426455]
[1739320490665,0.03879958,197.73,197.69,0.03566455]
[1739320490864,0.03879958,197.73,197.71,5.0579]
[1739320491460,0.03879958,197.73,197.69,0.03566455]
[1739320491658,0.03879958,197.73,197.7,5.0583]
[1739320492574,0.03879958,197.73,197.69,0.03566455]
[1739320492770,0.03879958,197.73,197.72,5.0579]
[1739320494071,0.03879958,197.73,197.7,5.0583]
[1739320494968,0.03879958,197.73,197.69,0.03566455]
[1739320495174,0.03879958,197.73,197.72,5.0579]
[1739320495574,0.03879958,197.73,197.72,13.89540297]
[1739320495975,0.03879958,197.73,197.72,8.83750297]
[1739320497479,0.03879958,197.73,197.72,13.89540297]
[1739320498272,0.03879958,197.73,197.72,8.83750297]
[1739320498776,0.03879958,197.73,197.7,10.35380297]
[1739320499981,0.03879958,197.73,197.7,15.41210297]
[1739320500676,5.0581,197.71,197.7,8.83750297]
[1739320500877,8.87630255,197.73,197.69,0.03566455]
[1739320501281,5.0584,197.7,197.69,0.03566455]
[1739320501682,8.87630255,197.73,197.69,0.03566455]
[1739320502182,0.03879958,197.73,197.69,0.03566455]
[1739320502776,8.87630255,197.73,197.69,0.03566455]
[1739320503480,5.0584,197.7,197.69,0.03566455]
[1739320504876,5.0579,197.72,197.69,0.03566455]
[1739320505080,0.03879958,197.73,197.69,0.03566455]
[1739320507589,5.09659958,197.73,197.69,0.03566455]
[1739320507785,0.03879958,197.73,197.69,0.03566455]
[1739320508183,5.0579,197.72,197.69,0.03566455]
[1739320508386,0.03879958,197.73,197.69,0.03566455]
[1739320508886,0.03879958,197.73,197.7,5.0583]
[1739320509087,0.03879958,197.73,197.69,0.03566455]
[1739320510183,0.03879958,197.73,197.72,5.0579]
[1739320510590,5.0564,197.78,197.71,13.82126774]
[1739320511586,0.03776965,197.76,197.7,2.9494]
[1739320511782,0.03776965,197.76,197.7,1.4629]
[1739320511983,0.03776965,197.76,197.71,0.03711132]
[1739320512782,5.0579,197.72,197.71,0.03711132]
[1739320513288,5.0579,197.72,197.71,1.132e-05]
[1739320513587,5.06,197.64,197.58,7.03497096]
[1739320513783,13.82126774,197.67,197.58,7.03497096]
[1739320514589,0.0339853,197.64,197.61,0.03234983]
[1739320514784,0.0339853,197.64,197.61,5.09304983]
[1739320514986,13.82126774,197.7,197.61,0.03234983]
[1739320515183,0.0321535,197.64,197.61,0.03234983]
[1739320515489,0.0321535,197.64,197.61,5.09304983]
[1739320515686,0.0321535,197.64,197.61,0.03234983]
[1739320518592,5.0604,197.62,197.61,0.03234983]
[1739320519484,18.91362124,197.64,197.61,0.03234983]
[1739320519690,5.0923535,197.64,197.61,0.03234983]
[1739320520292,0.0321535,197.64,197.61,0.03234983]
[1739320520492,5.0602,197.63,197.61,0.03234983]
[1739320520692,0.0321535,197.64,197.61,0.03234983]
[1739320521393,0.0321535,197.64,197.62,5.0604]
[1739320521694,0.0321535,197.64,197.61,0.03234983]
[1739320521992,0.0321535,197.64,197.62,5.0604]
[1739320522195,0.0321535,197.64,197.61,0.03234983]
[1739320522595,13.82126774,197.73,197.62,13.82126774]
[1739320522787,1.5696,197.75,197.65,13.82126774]
[1739320522993,15.29096774,197.76,197.65,13.82126774]
[1739320523188,15.29096774,197.76,197.67,5.0592]
[1739320523493,15.29096774,197.76,197.65,13.82126774]
[1739320523695,15.29096774,197.76,197.63,1.5077]
[1739320523994,0.03454762,197.72,197.69,0.03409944]
[1739320524897,18.87966774,197.7,197.69,0.03409944]
[1739320526498,5.0584,197.7,197.69,0.03409944]
[1739320528699,5.0584,197.7,197.6,1.5134]
[1739320528700,13.82126774,197.7,197.6,1.5134]
[1739320528892,13.82126774,197.67,197.6,1.5134]
[1739320529097,5.0597,197.65,197.6,1.5134]
[1739320529500,13.82126774,197.7,197.6,1.5134]
[1739320529700,5.09263843,197.64,197.61,0.03349839]
[1739320530095,0.03263843,197.64,197.61,0.03349839]
[1739320530301,5.0604,197.62,197.61,0.03349839]
[1739320531696,5.0617,197.58,197.51,1.5707]
[1739320532095,13.82126774,197.64,197.51,1.5707]
[1739320532296,5.0618,197.57,197.52,5.063]
[1739320532697,13.82126774,197.64,197.51,1.5707]
[1739320532898,0.03577431,197.56,197.53,0.03607198]
[1739320533094,13.82126774,197.64,197.53,0.03607198]
[1739320533299,0.03768156,197.56,197.53,0.03607198]
[1739320533499,5.0608,197.61,197.53,0.03607198]
[1739320533701,0.038598,197.56,197.53,0.03607198]
[1739320533903,13.82126774,197.61,197.53,0.03607198]
[1739320534097,0.03196911,197.56,197.47,15.36816774]
[1739320534500,0.03196911,197.56,197.51,0.03661086]
[1739320534699,5.0627,197.54,197.51,0.03661086]
[1739320535105,0.03196911,197.56,197.51,0.03661086]
[1739320535404,5.09416911,197.56,197.51,0.03661086]
[1739320535602,0.03196911,197.56,197.51,0.03661086]
[1739320535906,5.0623,197.55,197.51,0.03661086]
[1739320536308,0.03196911,197.56,197.51,0.03661086]
[1739320536607,0.03196911,197.56,197.53,5.0627]
[1739320537003,0.03196911,197.56,197.51,0.03661086]
[1739320537199,0.03196911,197.56,197.51,5.09981086]
[1739320537604,0.03196911,197.56,197.51,0.03661086]
[1739320538709,5.063,197.52,197.51,0.03661086]
[1739320542331,5.0628,197.53,197.51,0.03661086]
[1739320543141,5.0623,197.55,197.51,0.03661086]
[1739320543334,0.03196911,197.56,197.51,0.03661086]
[1739320545113,0.03196911,197.56,197.53,5.0627]
[1739320545312,0.03196911,197.56,197.51,0.03661086]
[1739320545611,5.0626,197.54,197.51,0.03661086]
[1739320546512,5.0623,197.55,197.51,0.03661086]
[1739320546709,0.03196911,197.56,197.51,0.03661086]
[1739320547016,0.03196911,197.56,197.52,5.0628]
[1739320547213,0.03196911,197.56,197.51,0.03661086]
[1739320547713,0.03196911,197.56,197.53,5.0627]
[1739320548214,0.03196911,197.56,197.55,5.0622]
[1739320548517,0.03196911,197.56,197.53,13.82126774]
[1739320548910,0.03196911,197.56,197.55,5.0622]
[1739320550010,0.03196911,197.56,197.53,13.82126774]
[1739320550214,0.03196911,197.56,197.54,5.0625]
[1739320550818,0.03196911,197.56,197.55,5.0622]
[1739320553319,0.03196911,197.56,197.53,18.88376774]
[1739320553620,0.03196911,197.56,197.52,1.5686]
[1739320553815,0.03196911,197.56,197.53,13.82126774]
[1739320554016,0.03196911,197.56,197.53,18.88396774]
[1739320554612,0.03196911,197.56,197.54,5.0625]
[1739320555017,0.03196911,197.56,197.53,13.82126774]
[1739320555220,0.03196911,197.56,197.55,5.0622]
[1739320556521,0.03196911,197.56,197.53,18.88376774]
[1739320556721,0.03196911,197.56,197.53,13.82126774]
[1739320557118,0.03196911,197.56,197.55,5.0622]
[1739320558322,0.03196911,197.56,197.54,5.0625]
[1739320558620,0.03196911,197.56,197.53,13.82126774]
[1739320559221,0.03196911,197.56,197.53,18.88386774]
[1739320559421,0.03196911,197.56,197.53,13.82126774]
[1739320559721,0.03196911,197.56,197.55,5.0622]
[1739320560224,0.03196911,197.56,197.53,13.82126774]
[1739320560425,0.03196911,197.56,197.53,18.88396774]
[1739320561125,0.03196911,197.56,197.53,13.82126774]
[1739320561321,0.03196911,197.56,197.51,8.29521086]
[1739320561724,0.03196911,197.56,197.51,3.23221086]
[1739320561923,0.03196911,197.56,197.53,5.0627]
[1739320563127,0.03196911,197.56,197.55,5.0622]
[1739320565223,0.03196911,197.56,197.51,3.23221086]
[1739320565920,5.0625,197.55,197.51,8.29541086]
[1739320566121,0.03196911,197.56,197.51,0.03661086]
[1739320566823,5.063,197.52,197.51,0.03661086]
[1739320567125,0.03196911,197.56,197.51,0.03661086]
[1739320567927,5.063,197.52,197.51,0.03661086]
[1739320568325,0.03196911,197.56,197.51,0.03661086]
[1739320569225,0.03196911,197.56,197.53,5.0627]
[1739320569620,0.03196911,197.56,197.51,0.03661086]
[1739320570622,5.063,197.53,197.51,0.03661086]
[1739320571127,5.063,197.52,197.51,0.03661086]
[1739320579031,13.85323685,197.56,197.51,0.03661086]
[1739320579625,5.063,197.52,197.51,0.03661086]
[1739320579821,0.03196911,197.56,197.51,0.03661086]
[1739320580732,5.0624,197.55,197.51,0.03661086]
[1739320582131,5.09396911,197.56,197.51,5.09981086]
[1739320582427,0.03196911,197.56,197.53,13.82126774]
[1739320582829,0.03196911,197.56,197.54,5.0622]
[1739320583226,1.5243,197.68,197.53,13.82126774]
[1739320583227,15.34556774,197.68,197.53,13.82126774]
[1739320583428,5.0603,197.63,197.56,18.88306774]
[1739320583629,5.0603,197.63,197.56,13.82126774]
[1739320584229,15.34556774,197.68,197.56,13.82126774]
[1739320584533,0.0361556,197.61,197.59,13.82126774]
[1739320584734,0.0361556,197.61,197.6,5.0609]
[1739320584926,0.03603403,197.62,197.6,5.0609]
[1739320585126,1.5243,197.68,197.6,5.0609]
[1739320585325,0.03672857,197.63,197.59,13.85897112]
[1739320585933,0.03672857,197.63,197.59,0.03770338]
[1739320586735,5.0605,197.62,197.59,0.03770338]
[1739320588831,5.0607,197.61,197.59,0.03770338]
[1739320589339,5.0605,197.62,197.59,0.03770338]
[1739320592548,0.03672857,197.63,197.59,0.03770338]
[1739320592747,5.0607,197.61,197.59,0.03770338]
[1739320593650,5.0605,197.62,197.59,0.03770338]
[1739320594050,0.03672857,197.63,197.59,0.03770338]
[1739320594249,5.0607,197.61,197.59,0.03770338]
[1739320594548,0.03672857,197.63,197.59,0.03770338]
[1739320595647,5.0605,197.62,197.59,0.03770338]
[1739320596448,5.0605,197.62,197.59,5.09890338]
[1739320596946,0.03672857,197.63,197.59,0.03770338]
[1739320597147,0.03672857,197.63,197.62,5.0604]
[1739320597349,0.03672857,197.63,197.59,0.03770338]
[1739320597747,5.0607,197.62,197.59,0.03770338]
[1739320598343,0.03672857,197.63,197.59,0.03770338]
[1739320598543,5.09692857,197.63,197.6,5.0609]
[1739320598744,0.03672857,197.63,197.59,13.85897112]
[1739320600453,0.03672857,197.63,197.62,5.0604]
[1739320600955,0.03672857,197.63,197.59,13.85897112]
[1739320601253,0.03672857,197.63,197.6,5.0607]
[1739320601550,0.03672857,197.63,197.59,13.85897112]
[1739320601754,0.03672857,197.63,197.59,0.03770338]
[1739320602452,0.03672857,197.63,197.6,5.0609]
[1739320602846,0.03672857,197.63,197.59,13.85897112]
[1739320603046,0.03672857,197.63,197.62,5.0604]
[1739320603256,0.03672857,197.63,197.62,18.88166774]
[1739320603744,0.03672857,197.63,197.59,13.85897112]
[1739320604254,5.09702857,197.63,197.59,0.03770338]
[1739320604756,0.03672857,197.63,197.59,0.03770338]
[1739320605253,0.03672857,197.63,197.59,13.85897112]
[1739320605646,0.03672857,197.63,197.59,18.92007112]
[1739320606157,0.03672857,197.63,197.59,13.85897112]
[1739320606954,0.03672857,197.63,197.62,13.82126774]
[1739320607757,0.03672857,197.63,197.62,18.88166774]
[1739320608851,0.03672857,197.63,197.62,13.82126774]
[1739320609059,0.03672857,197.63,197.59,0.03770338]
[1739320609060,0.03672857,197.63,197.59,13.85897112]
[1739320609449,0.03672857,197.63,197.59,0.03770338]
[1739320613460,5.061,197.6,197.59,0.03770338]
[1739320616661,5.0621,197.56,197.49,13.82126774]
[1739320616860,13.82126774,197.62,197.49,13.82126774]
[1739320617062,13.82126774,197.59,197.48,5.0638]
[1739320617365,5.0627,197.54,197.48,5.0638]
[1739320617859,0.03573013,197.53,197.49,0.0344565]
[1739320619966,0.03573013,197.53,197.49,5.0981565]
[1739320620566,0.03573013,197.53,197.49,0.0344565]
[1739320620767,0.03573013,197.53,197.49,13.85572424]
[1739320621166,0.03573013,197.53,197.52,5.063]
[1739320625073,0.03573013,197.53,197.52,18.88426774]
[1739320626170,5.0605,197.62,197.57,5.0615]
[1739320626374,5.0605,197.62,197.55,13.82126774]
[1739320626669,1.5453,197.66,197.55,13.82126774]
[1739320626972,1.5453,197.66,197.56,5.0619]
[1739320627368,0.03271476,197.63,197.52,13.82126774]
[1739320627576,0.03271476,197.63,197.59,0.03738649]
[1739320628073,5.061,197.6,197.59,0.03738649]
[1739320628273,0.03271476,197.63,197.59,0.03738649]
[1739320628769,5.0608,197.61,197.59,0.03738649]
[1739320629173,0.03271476,197.63,197.59,0.03738649]
[1739320629373,5.061,197.6,197.59,0.03738649]
[1739320631878,13.8539825,197.63,197.52,13.82126774]
[1739320632170,13.82126774,197.63,197.49,206.82126774]
[1739320633179,0.03297892,197.58,197.54,0.0335811]
[1739320633770,5.0622,197.56,197.54,0.0335811]
[1739320634773,5.0617,197.57,197.54,0.0335811]
[1739320635074,0.03297892,197.58,197.54,0.0335811]
[1739320635678,0.03297892,197.58,197.55,8.85446096]
[1739320636477,0.03297892,197.58,197.55,13.91666096]
[1739320636973,8.85446096,197.56,197.54,0.0335811]
[1739320637678,5.0622,197.55,197.54,0.0335811]
[1739320641080,15.31626781,197.57,197.45,13.84516781]
[1739320641280,18.47836781,197.57,197.42,13.84516781]
[1739320641780,13.84516781,197.54,197.42,13.84516781]
[1739320642277,5.0637,197.5,197.42,13.84516781]
[1739320642477,5.10211731,197.5,197.46,0.03761184]
[1739320644079,0.03841731,197.5,197.46,0.03761184]
[1739320644881,5.10191731,197.5,197.46,0.03761184]
[1739320645078,0.03841731,197.5,197.46,0.03761184]
[1739320645979,0.03841731,197.5,197.48,13.84516781]
[1739320646380,0.03841731,197.5,197.49,5.0638]
[1739320646780,0.03841731,197.5,197.48,13.84516781]
[1739320646979,0.03841731,197.5,197.48,18.90916781]
[1739320647781,0.03841731,197.5,197.49,5.0638]
[1739320647982,0.03841731,197.5,197.48,13.84516781]